bitfinex/quotes_SOLUSD_20240725
["timestamp","ask_amount","ask_price","bid_price","bid_amount"]
[1721867791404,12.15,179.01,178.93,39.0362]
[1721867791405,12.15,179.0,178.94,12.15]
[1721867791592,12.15,179.0,178.98,5.5872]
[1721867791811,12.15,179.01,178.98,5.5872]
[1721867792110,12.15,179.01,178.99,5.5868]
[1721867792315,12.15,179.02,178.99,5.5868]
[1721867794093,12.15,179.02,178.98,5.5871]
[1721867794294,12.15,179.01,178.98,5.5871]
[1721867795297,12.15,179.0,178.96,19.557]
[1721867795590,12.15,179.0,178.97,5.5874]
[1721867795795,12.15,179.01,178.97,5.5874]
[1721867796198,12.15,179.0,178.96,13.9693]
[1721867796921,12.15,179.0,178.97,5.5875]
[1721867797422,12.15,179.01,178.97,5.5875]
[1721867797722,12.15,179.0,178.96,19.5571]
[1721867798628,12.15,178.99,178.96,19.5571]
[1721867798826,12.15,178.98,178.96,19.5571]
[1721867799527,12.15,178.98,178.96,13.9693]
[1721867799727,12.15,178.97,178.96,13.9693]
[1721867799923,12.15,178.98,178.96,19.5571]
[1721867800308,17.7375,178.97,178.92,13.9722]
[1721867800508,12.15,178.95,178.92,13.9722]
[1721867800711,12.15,178.96,178.92,13.9722]
[1721867801014,15.5131,179.04,178.9,0.7607691]
[1721867801015,16.8,179.03,178.95,13.9697]
[1721867801219,12.15,179.01,179.0,5.5865]
[1721867801413,12.15,179.01,178.98,19.5544]
[1721867802734,15.5131,179.04,178.99,5.5868]
[1721867803032,12.15,179.01,178.98,13.9675]
[1721867803226,12.15,179.0,178.97,5.5872]
[1721867803409,12.15,179.0,178.95,12.15]
[1721867803410,12.15,178.98,178.94,13.9705]
[1721867803613,12.15,178.96,178.94,13.9705]
[1721867803917,12.15,178.95,178.91,5.5892]
[1721867804119,12.15,178.95,178.9,26.8847691]
[1721867804425,12.15,178.96,178.91,17.739]
[1721867804735,12.15,178.96,178.92,5.5889]
[1721867805033,12.15,178.96,178.9,26.8847691]
[1721867806128,12.15,178.94,178.9,14.7347691]
[1721867806426,12.15,178.93,178.9,20.3241691]
[1721867807033,12.15,178.93,178.9,6.3503691]
[1721867807611,12.15,178.94,178.9,6.3503691]
[1721867808923,12.15,178.94,178.91,5.5893]
[1721867809944,12.15,178.92,178.9,0.7607691]
[1721867810109,12.15,178.91,178.9,0.7607691]
[1721867810309,57.15,178.91,178.9,0.7607691]
[1721867810545,86.0029,178.91,178.9,0.7607691]
[1721867810839,86.0029,178.91,178.75,12.21145056]
[1721867810840,16.8,178.87,178.77,13.9842]
[1721867811143,16.8,178.87,178.73,34.4158]
[1721867811144,15.4272,178.88,178.78,1.11850057]
[1721867811437,12.15,178.86,178.84,5.5915]
[1721867811645,12.15,178.86,178.85,5.5912]
[1721867811946,12.15,178.86,178.83,19.5709]
[1721867812119,12.15,178.84,178.83,13.9793]
[1721867812723,12.15,178.84,178.79,13.9824]
[1721867812921,12.15,178.84,178.82,5.5922]
[1721867813120,12.15,178.85,178.82,5.5922]
[1721867813739,12.15,178.84,178.79,13.9824]
[1721867813948,12.15,178.83,178.79,13.9824]
[1721867814324,16.8,178.85,178.79,13.9824]
[1721867814941,16.8,178.87,178.79,13.9824]
[1721867815122,5.5918,178.84,178.78,5.5934]
[1721867815320,6.4873,178.83,178.78,5.5934]
[1721867816033,23.2873,178.83,178.78,5.5934]
[1721867816239,45.0,178.82,178.74,13.986]
[1721867816740,16.8,178.81,178.74,13.986]
[1721867816924,16.8,178.81,178.76,5.5939]
[1721867816925,45.0,178.8,178.76,5.5939]
[1721867817261,16.8,178.77,178.72,0.800368]
[1721867817421,16.8,178.77,178.72,6.395568]
[1721867817744,15.6676,178.78,178.72,0.800368]
[1721867817918,45.0,178.8,178.76,5.594]
[1721867818118,45.0,178.8,178.74,5.5944]
[1721867818319,45.0,178.8,178.73,13.987]
[1721867818744,16.8,178.79,178.73,13.987]
[1721867818925,45.0,178.8,178.75,5.5942]
[1721867819128,21.7768,178.83,178.79,5.593]
[1721867819332,21.7768,178.83,178.8,5.5928]
[1721867819536,21.7768,178.83,178.76,13.9847]
[1721867820327,407.1254,178.87,178.74,1.11852147]
[1721867820524,407.1254,178.87,178.81,5.5922]
[1721867820741,16.8,178.86,178.81,5.5922]
[1721867821044,16.8,178.86,178.73,29.0929253]
[1721867821045,16.8,178.86,178.79,5.5931]
[1721867821245,5.5912,178.85,178.79,5.5931]
[1721867821719,407.1254,178.87,178.81,13.9807]
[1721867821922,423.9254,178.87,178.81,13.9807]
[1721867822150,5.5912,178.85,178.79,5.5928]
[1721867822321,5.5916,178.84,178.77,13.9839]
[1721867822523,61.8,178.83,178.77,13.9839]
[1721867822717,5.5923,178.82,178.77,13.9839]
[1721867823145,16.8,178.82,178.75,5.5941]
[1721867823331,45.0,178.81,178.75,5.5941]
[1721867823640,45.0,178.81,178.73,13.9872]
[1721867823852,16.8,178.83,178.73,13.9872]
[1721867824031,45.0,178.82,178.73,13.9872]
[1721867824341,5.5925,178.81,178.75,5.5941]
[1721867824852,61.8,178.82,178.76,5.594]
[1721867825022,61.8,178.82,178.77,5.5937]
[1721867825223,67.3923,178.82,178.73,13.9872]
[1721867825640,5.5925,178.81,178.74,5.5944]
[1721867825925,5.5925,178.81,178.73,13.9872]
[1721867826231,5.5925,178.81,178.76,5.594]
[1721867826541,67.3922,178.82,178.76,5.594]
[1721867828663,5.5925,178.81,178.76,5.594]
[1721867828948,61.8,178.82,178.77,5.5937]
[1721867829741,385.0,178.84,178.8,5.5926]
[1721867829929,385.0,178.84,178.8,13.9818]
[1721867830336,390.5915,178.84,178.78,5.5934]
[1721867830552,5.5922,178.82,178.76,19.5785]
[1721867830747,16.8,178.83,178.76,13.9847]
[1721867830968,385.0,178.84,178.8,5.5928]
[1721867831131,385.0,178.84,178.79,13.9825]
[1721867831132,385.0,178.84,178.82,5.592]
[1721867831328,22.1254,178.87,178.82,13.9799]
[1721867831858,38.9254,178.87,178.82,13.9799]
[1721867832424,44.516,178.87,178.82,19.5718]
[1721867832657,47.0411,178.92,178.82,13.9799]
[1721867832937,16.8,178.91,178.87,5.5904]
[1721867833260,16.8,178.91,178.85,13.9779]
[1721867834652,22.3894,178.91,178.85,19.5688]
[1721867835061,16.8,178.91,178.86,5.5909]
[1721867835253,16.8,178.91,178.87,5.5906]
[1721867835451,414.9584,178.95,178.88,5.5902]
[1721867835664,385.0,178.95,178.88,13.9754]
[1721867836279,385.0,178.95,178.91,5.5893]
[1721867836584,21.8318,178.96,178.88,13.9754]
[1721867836760,16.244,178.96,178.91,5.5893]
[1721867837382,22.3885,178.94,178.88,19.5654]
[1721867838184,21.8321,178.96,178.89,5.59]
[1721867838482,61.8,178.95,178.9,5.5896]
[1721867839057,45.0,178.95,178.9,5.5896]
[1721867839688,61.8,178.95,178.9,5.5896]
[1721867839861,61.8,178.95,178.88,19.5654]
[1721867839862,67.3881,178.95,178.88,19.5654]
[1721867840200,67.3881,178.95,178.89,5.5899]
[1721867840479,45.0,178.95,178.83,52.3289]
[1721867840680,22.1614,179.01,178.88,27.9505]
[1721867840872,385.0,179.03,178.98,13.9677]
[1721867841057,407.1614,179.05,178.99,5.5868]
[1721867841258,412.7464,179.05,178.99,5.5868]
[1721867841680,429.5464,179.05,178.98,13.9677]
[1721867841885,5.5859,179.02,178.96,5.5876]
[1721867842072,16.8,179.04,178.94,13.9708]
[1721867842255,16.8,179.04,178.95,20.0]
[1721867842460,16.8,179.01,178.94,19.559]
[1721867842764,41.17,179.04,178.94,13.9708]
[1721867842968,5.5858,179.03,178.97,5.5875]
[1721867843167,22.3858,179.03,178.97,5.5875]
[1721867843477,16.8,179.0,178.94,13.9708]
[1721867843683,5.5873,178.98,178.9,13.9742]
[1721867843879,16.8,179.0,178.91,20.0]
[1721867844291,385.0,179.04,178.96,5.5877]
[1721867844292,16.8,179.02,178.96,5.5877]
[1721867844459,385.0,179.04,178.96,13.9691]
[1721867844665,385.0,179.04,178.94,1.11752088]
[1721867844881,385.0,179.04,178.99,19.5532]
[1721867845180,22.1614,179.05,178.99,13.9666]
[1721867845485,22.386,179.02,178.95,13.97]
[1721867845987,5.5863,179.01,178.95,13.97]
[1721867846583,22.3858,179.03,178.96,5.5877]
[1721867846879,61.8,179.02,178.96,5.5877]
[1721867847386,67.3859,179.02,178.96,5.5877]
[1721867847568,45.0,179.02,178.96,1.11756585]
[1721867847883,45.0,179.03,178.97,5.5872]
[1721867848188,50.5856,179.03,178.97,5.5872]
[1721867849597,45.0,179.03,178.95,13.97]
[1721867849964,45.0,179.03,178.99,5.5868]
[1721867850204,45.0,179.04,178.99,5.5868]
[1721867851590,67.3854,179.04,178.97,5.5872]
[1721867851890,5.5857,179.03,178.97,5.5872]
[1721867852267,45.0,179.02,178.97,5.5872]
[1721867852467,67.386,179.02,178.95,13.97]
[1721867852719,16.4185,179.09,178.98,13.9675]
[1721867852989,14.92932918,179.13,179.08,5.5839]
[1721867852990,16.4185,179.13,179.08,5.5839]
[1721867853179,16.4185,179.13,179.02,1.11673886]
[1721867853500,400.8822,179.17,179.13,5.5825]
[1721867853874,406.4635,179.17,179.1,5.5832]
[1721867854467,406.4635,179.17,179.11,5.5831]
[1721867854672,400.8822,179.17,179.13,19.5382]
[1721867854890,45.0,179.16,179.13,13.956]
[1721867855196,45.0,179.16,179.11,5.5829]
[1721867855366,417.6822,179.17,179.05,5.5848]
[1721867855572,22.3822,179.15,179.08,5.584]
[1721867855785,22.3822,179.15,179.07,13.9607]
[1721867855980,22.3822,179.15,179.09,5.5837]
[1721867856181,400.8822,179.17,179.12,5.5826]
[1721867856382,400.8822,179.17,179.13,5.5824]
[1721867856593,385.0,179.17,179.13,5.5824]
[1721867857376,385.0,179.17,179.11,19.5406]
[1721867857589,385.0,179.17,179.12,5.5828]
[1721867857983,401.8,179.17,179.11,13.9577]
[1721867858183,5.582,179.15,179.07,13.9605]
[1721867858405,5.5822,179.14,179.08,20.0]
[1721867859074,5.5822,179.14,179.08,25.584]
[1721867859371,30.7185,179.19,179.11,13.9578]
[1721867859704,50.5809,179.18,179.12,5.5827]
[1721867859999,50.5809,179.18,179.13,5.5825]
[1721867860000,45.0,179.18,179.13,5.5825]
[1721867861195,6.3485,179.19,179.13,5.5825]
[1721867861397,6.3485,179.19,179.14,13.9549]
[1721867861702,15.432,179.22,179.16,5.5815]
[1721867862082,15.432,179.22,179.14,19.5368]
[1721867862395,5.5807,179.19,179.14,13.9549]
[1721867862896,45.0,179.18,179.11,5.5829]
[1721867863099,45.0,179.18,179.1,13.9581]
[1721867863401,6.5898,179.17,179.05,1.11660056]
[1721867863694,5.83178704,179.18,179.15,5.5819]
[1721867864005,5.5804,179.2,179.15,5.5819]
[1721867864303,5.5806,179.19,179.13,5.5822]
[1721867865015,6.5425,179.21,179.14,5.5821]
[1721867865222,45.0,179.2,179.14,5.5821]
[1721867865381,5.5806,179.19,179.14,5.5821]
[1721867866116,5.5804,179.2,179.13,5.5822]
[1721867866408,23.3425,179.21,179.13,5.5822]
[1721867866586,6.5425,179.21,179.12,13.9565]
[1721867867095,6.5425,179.21,179.17,5.5812]
[1721867867405,15.432,179.22,179.17,5.5812]
[1721867867908,15.432,179.22,179.11,1.1161376]
[1721867868207,397.1723,179.25,179.18,13.9517]
[1721867868980,391.5935,179.25,179.21,5.5799]
[1721867870116,391.5935,179.25,179.2,5.5803]
[1721867870301,5.5791,179.24,179.18,19.5324]
[1721867871310,391.5935,179.25,179.19,5.5806]
[1721867872387,391.5935,179.25,179.18,13.9517]
[1721867872591,5.5791,179.24,179.18,19.5326]
[1721867873192,385.0,179.23,179.19,5.5806]
[1721867873592,385.0,179.23,179.21,5.5799]
[1721867874000,385.0,179.23,179.22,5.5797]
[1721867874202,385.0,179.23,179.21,19.5298]
[1721867874509,385.0,179.23,179.21,13.9498]
[1721867875704,385.0,179.23,179.21,19.5297]
[1721867876393,15.3642,179.27,179.22,20.0]
[1721867876920,5.5785,179.26,179.21,13.9498]
[1721867877089,5.5788,179.25,179.17,13.9529]
[1721867877290,5.5791,179.24,179.19,5.5806]
[1721867877816,5.5787,179.26,179.2,5.5803]
[1721867878107,32.1642,179.27,179.17,13.9529]
[1721867878323,45.0,179.26,179.17,13.9529]
[1721867878489,45.0,179.26,179.2,13.9506]
[1721867878690,15.3642,179.27,179.2,13.9506]
[1721867879008,45.0,179.26,179.2,13.9506]
[1721867879187,50.5784,179.26,179.2,13.9506]
[1721867880026,5.5788,179.25,179.2,13.9506]
[1721867880398,15.3642,179.27,179.23,5.5794]
[1721867880711,15.3642,179.27,179.2,13.9506]
[1721867880902,15.3642,179.27,179.22,5.5794]
[1721867881513,20.9424,179.27,179.22,5.5794]
[1721867882019,385.0,179.26,179.23,5.5794]
[1721867882816,385.0,179.26,179.2,13.9506]
[1721867883301,385.0,179.26,179.21,5.58]
[1721867883931,390.5785,179.26,179.21,5.58]
[1721867884297,390.5785,179.26,179.2,19.5309]
[1721867885897,5.5788,179.25,179.2,13.9506]
[1721867886098,50.5793,179.24,179.19,5.5805]
[1721867886413,390.5786,179.26,179.19,13.9511]
[1721867886608,385.0,179.26,179.21,5.58]
[1721867887192,385.0,179.26,179.22,13.9491]
[1721867888021,15.3642,179.27,179.22,13.9491]
[1721867888318,50.5785,179.26,179.2,5.5802]
[1721867888814,61.8,179.26,179.18,13.9519]
[1721867889011,5.5791,179.24,179.18,13.9519]
[1721867889213,5.5791,179.24,179.18,19.5325]
[1721867889522,61.8,179.26,179.19,5.5804]
[1721867890029,61.8,179.26,179.18,13.9519]
[1721867890030,5.5792,179.24,179.18,19.5327]
[1721867891327,5.5792,179.24,179.19,5.5805]
[1721867891526,5.5794,179.23,179.18,13.9519]
[1721867891826,67.8604,179.22,179.14,19.5368]
[1721867891995,67.8604,179.22,179.11,5.583]
[1721867891996,5.581,179.18,179.11,5.583]
[1721867892404,15.2084,179.19,179.13,13.9557]
[1721867892823,15.2084,179.19,179.13,19.538]
[1721867893124,5.5812,179.18,179.13,13.9557]
[1721867893424,45.0,179.17,179.13,13.9557]
[1721867893725,15.2084,179.19,179.13,13.9557]
[1721867894325,45.0,179.18,179.13,13.9557]
[1721867894504,15.2084,179.19,179.15,5.5818]
[1721867894704,15.2084,179.19,179.13,13.9557]
[1721867895019,15.2084,179.19,179.16,5.5814]
[1721867895211,15.2084,179.19,179.15,5.5819]
[1721867897312,15.2084,179.19,179.13,13.9557]
[1721867898921,15.2084,179.19,179.15,5.5818]
[1721867901238,6.0604,179.22,179.18,5.5809]
[1721867901536,15.2465,179.23,179.18,5.5809]
[1721867902124,15.2465,179.23,179.19,5.5806]
[1721867902313,6.3851,179.26,179.22,5.5797]
[1721867902513,32.9971,179.32,179.2,13.9507]
[1721867902837,32.9971,179.32,179.23,13.9479]
[1721867902838,57.3671,179.32,179.23,13.9479]
[1721867903144,57.3671,179.32,179.24,5.5791]
[1721867903834,5.5772,179.3,179.24,5.5791]
[1721867904217,5.5776,179.29,179.24,5.5791]
[1721867904411,57.3671,179.32,179.23,13.9479]
[1721867904612,46.144,179.32,179.26,5.5783]
[1721867904833,5.5769,179.31,179.26,5.5783]
[1721867906007,5.5772,179.3,179.24,5.5788]
[1721867907513,5.5782,179.27,179.21,5.58]
[1721867907711,5.5778,179.28,179.22,5.5796]
[1721867907942,5.5778,179.28,179.23,5.5793]
[1721867908337,5.5778,179.28,179.21,5.5797]
[1721867908833,5.5778,179.28,179.22,5.5797]
[1721867909238,45.0,179.29,179.19,13.9511]
[1721867909545,45.0,179.29,179.22,5.5797]
[1721867909546,5.5781,179.28,179.22,5.5797]
[1721867909731,45.0,179.29,179.23,5.5793]
[1721867910446,50.5777,179.29,179.23,5.5793]
[1721867910950,5.5781,179.28,179.22,13.9491]
[1721867911133,45.0,179.27,179.22,19.5288]
[1721867911338,50.5781,179.27,179.22,19.5288]
[1721867911528,5.5785,179.26,179.22,13.9491]
[1721867912236,5.5785,179.26,179.2,5.5803]
[1721867912544,6.6491,179.25,179.19,5.5806]
[1721867912733,45.0,179.24,179.18,13.9518]
[1721867912924,6.6491,179.25,179.18,13.9518]
[1721867913656,12.2279,179.25,179.2,5.5803]
[1721867913833,6.6491,179.25,179.2,5.5803]
[1721867914337,45.0,179.24,179.18,13.9518]
[1721867915327,50.5791,179.24,179.19,5.5806]
[1721867916446,5.5794,179.23,179.18,13.9518]
[1721867916655,45.0,179.22,179.18,13.9518]
[1721867917925,45.0,179.22,179.18,19.5327]
[1721867918357,45.0,179.23,179.18,19.5327]
[1721867918947,45.0,179.23,179.16,5.5813]
[1721867919155,45.0,179.23,179.17,5.5811]
[1721867919756,45.0,179.23,179.18,5.5808]
[1721867920348,45.0,179.23,179.19,5.5806]
[1721867920663,27.55,179.25,179.2,19.5301]
[1721867920664,45.0,179.24,179.2,19.5301]
[1721867920954,45.0,179.24,179.2,13.9501]
[1721867921326,45.0,179.24,179.2,19.5304]
[1721867921564,45.0,179.24,179.21,5.5799]
[1721867922034,45.0,179.24,179.2,13.9501]
[1721867922235,45.0,179.24,179.16,13.9533]
[1721867922455,61.8,179.24,179.16,13.9533]
[1721867922666,5.5798,179.22,179.16,19.5348]
[1721867922826,45.0,179.21,179.11,11.0933]
[1721867923032,61.8,179.24,179.12,20.0]
[1721867923231,5.58,179.22,179.16,5.5812]
[1721867923434,45.0,179.21,179.16,5.5812]
[1721867924266,45.0,179.21,179.17,5.5812]
[1721867926339,45.0,179.21,179.15,5.5816]
[1721867926861,45.0,179.21,179.16,5.5814]
[1721867927029,45.0,179.21,179.17,5.5811]
[1721867927232,45.0,179.22,179.17,5.5811]
[1721867927560,50.5797,179.22,179.17,5.5811]
[1721867927785,50.5797,179.22,179.16,5.5815]
[1721867928955,50.5797,179.22,179.17,5.5812]
[1721867929471,50.5797,179.22,179.17,13.9528]
[1721867929472,45.0,179.22,179.17,13.9528]
[1721867929654,5.5792,179.24,179.19,5.5806]
[1721867929861,45.0,179.23,179.19,5.5806]
[1721867930251,12.13,179.21,179.19,5.5806]
[1721867930569,12.13,179.21,179.18,5.5809]
[1721867931841,12.13,179.21,179.17,19.534]
[1721867932042,12.13,179.21,179.18,5.5808]
[1721867932250,12.13,179.22,179.19,5.5806]
[1721867932467,12.13,179.22,179.17,26.0828]
[1721867932673,12.13,179.22,179.2,13.9504]
[1721867935051,12.13,179.22,179.18,5.5809]
[1721867935248,12.13,179.21,179.18,5.5809]
[1721867937348,12.13,179.21,179.19,5.5806]
[1721867938166,27.55,179.25,179.19,5.5806]
[1721867938347,12.13,179.22,179.19,5.5806]
[1721867940253,12.13,179.23,179.2,5.5803]
[1721867941741,21.9712,179.25,179.21,5.58]
[1721867941941,12.13,179.26,179.22,13.949]
[1721867942142,15.5297,179.29,179.24,12.13]
[1721867942348,27.6597,179.29,179.25,13.9465]
[1721867942798,27.6597,179.29,179.25,15.06214123]
[1721867943074,12.13,179.29,179.25,15.06214123]
[1721867943251,12.13,179.3,179.25,15.06214123]
[1721867943668,12.13,179.3,179.27,5.5781]
[1721867943968,21.6129,179.34,179.25,26.0765]
[1721867944177,21.6129,179.34,179.28,13.9444]
[1721867944178,12.13,179.33,179.28,13.9444]
[1721867944555,12.13,179.33,179.29,5.5774]
[1721867944881,12.13,179.32,179.28,13.9444]
[1721867945169,12.13,179.31,179.28,19.5222]
[1721867947265,12.13,179.32,179.28,19.5222]
[1721867948292,12.13,179.29,179.26,5.5781]
[1721867949395,12.13,179.29,179.27,5.5781]
[1721867949572,5.5766,179.33,179.28,5.5778]
[1721867949895,45.0,179.32,179.28,5.5778]
[1721867950076,12.13,179.3,179.28,5.5778]
[1721867950391,12.13,179.31,179.28,5.5778]
[1721867950585,12.13,179.31,179.27,19.5234]
[1721867950784,12.13,179.3,179.27,19.5234]
[1721867951174,12.13,179.3,179.27,13.9453]
[1721867951493,57.13,179.29,179.27,13.9453]
[1721867951802,12.13,179.3,179.27,13.9453]
[1721867952166,12.13,179.3,179.27,19.5234]
[1721867953983,12.13,179.3,179.23,13.9483]
[1721867954289,12.13,179.28,179.23,13.9483]
[1721867955074,12.13,179.28,179.25,5.5787]
[1721867955780,12.13,179.26,179.22,5.5796]
[1721867956086,12.13,179.26,179.23,5.5794]
[1721867956281,12.13,179.26,179.2,12.13]
[1721867956882,5.5778,179.28,179.2,12.13]
[1721867957112,12.13,179.26,179.22,5.5794]
[1721867959481,12.13,179.26,179.23,5.5793]
[1721867959683,12.13,179.27,179.22,13.949]
[1721867959996,12.13,179.28,179.26,5.5784]
[1721867960999,5.5763,179.33,179.28,5.5778]
[1721867961206,6.376268,179.35,179.29,5.5772]
[1721867961499,12.13,179.31,179.28,13.9445]
[1721867963896,12.13,179.29,179.24,26.0771]
[1721867964087,423.4129,179.34,179.24,13.9471]
[1721867964088,12.13,179.28,179.24,13.9471]
[1721867964290,12.13,179.27,179.24,13.9471]
[1721867964704,45.0,179.33,179.27,5.5781]
[1721867964877,12.13,179.3,179.27,5.5781]
[1721867965079,12.13,179.29,179.26,5.5784]
[1721867965399,12.13,179.28,179.26,5.5784]
[1721867966280,12.13,179.29,179.26,5.5784]
[1721867966705,5.5767,179.32,179.26,5.5784]
[1721867966901,45.0,179.33,179.27,5.578]
[1721867966902,12.13,179.3,179.27,5.578]
[1721867967281,12.13,179.3,179.26,5.5784]
[1721867967484,12.13,179.29,179.26,5.5784]
[1721867967690,12.13,179.3,179.27,5.5781]
[1721867968590,21.6129,179.34,179.27,26.075]
[1721867968788,21.6129,179.34,179.31,5.5769]
[1721867968979,12.13,179.33,179.31,5.5769]
[1721867969300,12.13,179.32,179.23,13.9479]
[1721867969597,12.13,179.29,179.24,20.0]
[1721867969979,12.13,179.29,179.26,13.9459]
[1721867970175,15.1657,179.34,179.3,5.5772]
[1721867970394,12.13,179.33,179.3,5.5772]
[1721867971202,12.13,179.32,179.3,5.5772]
[1721867972190,12.13,179.33,179.3,5.5772]
[1721867972891,15.1657,179.34,179.3,5.5772]
[1721867973394,12.13,179.33,179.3,5.5772]
[1721867973596,12.13,179.33,179.29,13.9436]
[1721867974401,12.13,179.33,179.3,5.5769]
[1721867974591,15.1657,179.34,179.3,5.5769]
[1721867974798,12.13,179.33,179.3,5.5769]
[1721867975200,15.1657,179.34,179.31,5.5767]
[1721867975415,0.800368,179.35,179.33,5.5763]
[1721867975588,12.930368,179.35,179.33,5.5763]
[1721867975915,12.930368,179.35,179.32,5.5766]
[1721867976509,12.930368,179.35,179.31,5.5769]
[1721867976889,12.13,179.34,179.31,5.5769]
[1721867977090,0.800368,179.35,179.31,5.5769]
[1721867977291,12.13,179.34,179.31,5.5769]
[1721867978905,12.13,179.34,179.29,13.9436]
[1721867979098,12.13,179.33,179.29,13.9436]
[1721867979701,0.800368,179.35,179.29,26.0736]
[1721867979907,12.930368,179.35,179.29,26.0736]
[1721867980120,12.13,179.34,179.29,26.0736]
[1721867980314,12.13,179.33,179.29,13.9436]
[1721867981194,0.800368,179.35,179.31,5.5769]
[1721867981504,12.13,179.33,179.31,5.5769]
[1721867983810,57.13,179.32,179.29,13.9436]
[1721867984022,12.13,179.3,179.25,13.9464]
[1721867984192,12.13,179.29,179.25,13.9464]
[1721867984808,12.13,179.3,179.28,13.9444]
[1721867985325,16.2426,179.31,179.28,13.9444]
[1721867985493,12.13,179.3,179.28,13.9444]
[1721867985692,12.13,179.3,179.29,5.5773]
[1721867986118,28.3726,179.31,179.29,5.5773]
[1721867986921,28.3726,179.31,179.28,19.5222]
[1721867988006,0.800368,179.35,179.28,19.5222]
[1721867988007,16.695768,179.35,179.31,5.5768]
[1721867988316,12.13,179.34,179.31,5.5768]
[1721867990206,12.13,179.33,179.31,5.5768]
[1721867990421,12.13,179.33,179.29,5.5772]
[1721867990723,12.13,179.33,179.3,5.5771]
[1721867991597,0.800368,179.35,179.3,5.5771]
[1721867991810,12.13,179.34,179.31,13.9421]
[1721867991997,12.13,179.33,179.31,13.9421]
[1721867993120,45.800368,179.35,179.31,13.9421]
[1721867993302,12.13,179.34,179.32,5.5765]
[1721867993719,0.800368,179.35,179.31,26.0721]
[1721867994015,0.800368,179.35,179.34,5.576]
[1721867996097,0.800368,179.35,179.34,17.706]
[1721867996726,0.800368,179.35,179.34,5.576]
[1721867997510,0.800368,179.35,179.31,26.0721]
[1721867997832,12.930368,179.35,179.32,5.5766]
[1721867998123,12.930368,179.35,179.33,5.5761]
[1721867998323,0.800368,179.35,179.33,5.5761]
[1721867998523,0.800368,179.35,179.34,5.576]
[1721867998996,0.800368,179.35,179.31,13.9421]
[1721867999208,12.13,179.34,179.31,19.5187]
[1721867999538,0.800368,179.35,179.32,5.5765]
[1721867999712,12.930368,179.35,179.31,13.9421]
[1721868000309,12.930368,179.35,179.33,5.5762]
[1721868000513,0.800368,179.35,179.33,5.5762]
[1721868001027,12.13,179.34,179.31,13.9421]
[1721868001212,0.800368,179.35,179.31,13.9421]
[1721868001408,12.930368,179.35,179.31,13.9421]
[1721868002328,12.930368,179.35,179.33,5.5762]
[1721868002650,0.800368,179.35,179.33,5.5761]
[1721868002938,12.930368,179.35,179.33,5.5761]
[1721868003813,0.800368,179.35,179.33,5.5761]
[1721868004021,0.800368,179.35,179.32,5.5766]
[1721868004222,12.930368,179.35,179.32,5.5766]
[1721868006224,0.800368,179.35,179.33,5.5762]